[Event "Titled Tuesday Blitz January 03 Early 2023"]
[White "Sarana, Alexey"]
[Black "Oliveira, Silvio Eduardo"]
[WhiteFideId "24133795"]
[BlackFideId "2111560"]
[WhiteElo "2685"]
[BlackElo "2297"]
[Result "1-0"]
[Round "05"]
[TimeControl "180+2"]
[Date "2023.01.03"]
[WhiteClock "0:00:09"]
[BlackClock "0:00:03"]

1. c4 {[%clk 0:02:55]}  Nf6 {[%clk 0:02:59]} 2. d4 {[%clk 0:02:55]}  e6 {[%clk 0:02:58]} 3. Nc3 {[%clk 0:02:56]}  d5 {[%clk 0:02:58]} 4. cxd5 {[%clk 0:02:56]}  exd5 {[%clk 0:02:58]} 5. Bf4 {[%clk 0:02:55]}  Bd6 {[%clk 0:02:55]} 6. Bxd6 {[%clk 0:02:54]}  Qxd6 {[%clk 0:02:56]} 7. e3 {[%clk 0:02:54]}  O-O {[%clk 0:02:54]} 8. Bd3 {[%clk 0:02:55]}  b6 {[%clk 0:02:47]} 9. h3 {[%clk 0:02:54]}  c5 {[%clk 0:02:45]} 10. Nf3 {[%clk 0:02:53]}  Nc6 {[%clk 0:02:45]} 11. dxc5 {[%clk 0:02:50]}  bxc5 {[%clk 0:02:43]} 12. O-O {[%clk 0:02:51]}  Be6 {[%clk 0:02:38]} 13. Rc1 {[%clk 0:02:49]}  Rfd8 {[%clk 0:02:33]} 14. b3 {[%clk 0:02:47]}  h6 {[%clk 0:02:30]} 15. Qe2 {[%clk 0:02:31]}  Nb4 {[%clk 0:02:26]} 16. Rfd1 {[%clk 0:02:29]}  Nxd3 {[%clk 0:02:22]} 17. Qxd3 {[%clk 0:02:29]}  Rac8 {[%clk 0:02:20]} 18. Qb5 {[%clk 0:02:29]}  Qb6 {[%clk 0:02:17]} 19. Qa4 {[%clk 0:02:28]}  Bf5 {[%clk 0:02:07]} 20. Qa3 {[%clk 0:02:27]}  Be4 {[%clk 0:02:04]} 21. Na4 {[%clk 0:02:24]}  Qd6 {[%clk 0:01:51]} 22. Rxc5 {[%clk 0:02:02]}  Bxf3 {[%clk 0:01:49]} 23. gxf3 {[%clk 0:02:03]}  Qe6 {[%clk 0:01:43]} 24. Kg2 {[%clk 0:01:57]}  Qf5 {[%clk 0:01:43]} 25. Qb4 {[%clk 0:01:46]}  Qg5+ {[%clk 0:01:30]} 26. Kh2 {[%clk 0:01:45]}  Qf5 {[%clk 0:01:27]} 27. Qf4 {[%clk 0:01:41]}  Qxf4+ {[%clk 0:01:25]} 28. exf4 {[%clk 0:01:42]}  Rxc5 {[%clk 0:01:21]} 29. Nxc5 {[%clk 0:01:42]}  d4 {[%clk 0:01:19]} 30. b4 {[%clk 0:01:38]}  Nh5 {[%clk 0:01:11]} 31. f5 {[%clk 0:00:49]}  Kf8 {[%clk 0:01:07]} 32. a4 {[%clk 0:00:48]}  Ke7 {[%clk 0:01:01]} 33. a5 {[%clk 0:00:38]}  Nf4 {[%clk 0:00:58]} 34. Kg3 {[%clk 0:00:22]}  Ne2+ {[%clk 0:00:54]} 35. Kg4 {[%clk 0:00:21]}  Kf6 {[%clk 0:00:53]} 36. f4 {[%clk 0:00:20]}  Nc3 {[%clk 0:00:49]} 37. Rd3 {[%clk 0:00:20]}  Rd5 {[%clk 0:00:46]} 38. Nb3 {[%clk 0:00:14]}  Nb5 {[%clk 0:00:44]} 39. Nd2 {[%clk 0:00:14]}  Nd6 {[%clk 0:00:40]} 40. Nb3 {[%clk 0:00:07]}  Nxf5 {[%clk 0:00:38]} 41. Kf3 {[%clk 0:00:07]}  Rb5 {[%clk 0:00:35]} 42. Nxd4 {[%clk 0:00:06]}  Rxb4 {[%clk 0:00:33]} 43. Nxf5 {[%clk 0:00:05]}  Kxf5 {[%clk 0:00:34]} 44. Rd5+ {[%clk 0:00:03]}  Ke6 {[%clk 0:00:32]} 45. Rc5 {[%clk 0:00:03]}  Rb3+ {[%clk 0:00:26]} 46. Kg4 {[%clk 0:00:03]}  Rb7 {[%clk 0:00:27]} 47. f5+ {[%clk 0:00:02]}  Kd6 {[%clk 0:00:23]} 48. Rc4 {[%clk 0:00:03]}  Rb5 {[%clk 0:00:21]} 49. a6 {[%clk 0:00:03]}  Rb6 {[%clk 0:00:19]} 50. Ra4 {[%clk 0:00:02]}  Kc5 {[%clk 0:00:17]} 51. Re4 {[%clk 0:00:01]}  Kb5 {[%clk 0:00:16]} 52. Re7 {[%clk 0:00:01]}  Kxa6 {[%clk 0:00:14]} 53. Rxf7 {[%clk 0:00:02]}  Rb7 {[%clk 0:00:13]} 54. Rf8 {[%clk 0:00:02]}  Kb6 {[%clk 0:00:10]} 55. f6 {[%clk 0:00:02]}  gxf6 {[%clk 0:00:08]} 56. Rxf6+ {[%clk 0:00:03]}  Kb5 {[%clk 0:00:07]} 57. Rxh6 {[%clk 0:00:03]}  a5 {[%clk 0:00:07]} 58. Rh8 {[%clk 0:00:04]}  Rb6 {[%clk 0:00:07]} 59. Ra8 {[%clk 0:00:04]}  a4 {[%clk 0:00:07]} 60. f4 {[%clk 0:00:04]}  Ra6 {[%clk 0:00:06]} 61. Rxa6 {[%clk 0:00:03]}  Kxa6 {[%clk 0:00:06]} 62. f5 {[%clk 0:00:04]}  a3 {[%clk 0:00:06]} 63. f6 {[%clk 0:00:05]}  a2 {[%clk 0:00:07]} 64. f7 {[%clk 0:00:06]}  a1=Q {[%clk 0:00:07]} 65. f8=Q {[%clk 0:00:07]}  Qg1+ {[%clk 0:00:08]} 66. Kh5 {[%clk 0:00:07]}  Qd1+ {[%clk 0:00:07]} 67. Kh6 {[%clk 0:00:06]}  Qd2+ {[%clk 0:00:03]} 68. Kh5 {[%clk 0:00:04]}  Qd1+ {[%clk 0:00:03]} 69. Kh4 {[%clk 0:00:04]}  Qe1+ {[%clk 0:00:03]} 70. Kg4 {[%clk 0:00:05]}  Qe2+ {[%clk 0:00:03]} 71. Qf3 {[%clk 0:00:04]}  Qe6+ {[%clk 0:00:02]} 72. Qf5 {[%clk 0:00:05]}  Qe2+ {[%clk 0:00:03]} 73. Kg5 {[%clk 0:00:05]}  Kb6 {[%clk 0:00:04]} 74. h4 {[%clk 0:00:05]}  Kc6 {[%clk 0:00:04]} 75. h5 {[%clk 0:00:06]}  Qg2+ {[%clk 0:00:04]} 76. Kf6 {[%clk 0:00:06]}  Qb2+ {[%clk 0:00:03]} 77. Kf7 {[%clk 0:00:06]}  Kd6 {[%clk 0:00:03]} 78. Qf6+ {[%clk 0:00:05]}  Qxf6+ {[%clk 0:00:01]} 79. Kxf6 {[%clk 0:00:06]}  Kd7 {[%clk 0:00:01]} 80. h6 {[%clk 0:00:07]}  Ke8 {[%clk 0:00:02]} 81. h7 {[%clk 0:00:08]}  Kd7 {[%clk 0:00:03]} 82. h8=Q {[%clk 0:00:09]} 1-0


[Site "https://www.chess.com"]

[Event "Titled Tuesday Blitz January 03 Early 2023"]
[White "Dominguez Perez, Leinier"]
[Black "Kozak, Adam"]
[WhiteFideId "3503240"]
[BlackFideId "753246"]
[WhiteElo "2739"]
[BlackElo "2572"]
[Result "0-1"]
[Round "05"]
[TimeControl "180+2"]
[Date "2023.01.03"]
[WhiteClock "0:00:01"]
[BlackClock "0:00:03"]

1. e4 {[%clk 0:03:00]}  e5 {[%clk 0:02:59]} 2. Nf3 {[%clk 0:03:01]}  Nc6 {[%clk 0:02:59]} 3. Bb5 {[%clk 0:03:01]}  Nf6 {[%clk 0:02:59]} 4. O-O {[%clk 0:03:01]}  Nxe4 {[%clk 0:02:59]} 5. Re1 {[%clk 0:03:02]}  Nd6 {[%clk 0:02:59]} 6. Nxe5 {[%clk 0:03:02]}  Be7 {[%clk 0:03:00]} 7. Bf1 {[%clk 0:03:01]}  Nxe5 {[%clk 0:03:00]} 8. Rxe5 {[%clk 0:03:01]}  O-O {[%clk 0:03:00]} 9. d4 {[%clk 0:03:01]}  Bf6 {[%clk 0:03:00]} 10. Re1 {[%clk 0:03:02]}  Re8 {[%clk 0:03:01]} 11. Bf4 {[%clk 0:03:01]}  Rxe1 {[%clk 0:02:59]} 12. Qxe1 {[%clk 0:03:02]}  Ne8 {[%clk 0:02:54]} 13. Nc3 {[%clk 0:03:02]}  Bxd4 {[%clk 0:02:37]} 14. Nd5 {[%clk 0:03:02]}  c6 {[%clk 0:02:38]} 15. Ne7+ {[%clk 0:03:01]}  Kf8 {[%clk 0:02:37]} 16. Nxc8 {[%clk 0:03:01]}  Rxc8 {[%clk 0:02:27]} 17. Qb4+ {[%clk 0:02:36]}  c5 {[%clk 0:02:24]} 18. Qxb7 {[%clk 0:02:36]}  Rc6 {[%clk 0:02:09]} 19. c3 {[%clk 0:02:24]}  Bxf2+ {[%clk 0:01:50]} 20. Kxf2 {[%clk 0:02:21]}  Qf6 {[%clk 0:01:50]} 21. Kg3 {[%clk 0:01:35]}  g5 {[%clk 0:01:25]} 22. Be3 {[%clk 0:00:45]}  Qe5+ {[%clk 0:00:35]} 23. Kf2 {[%clk 0:00:41]}  Rf6+ {[%clk 0:00:17]} 24. Ke2 {[%clk 0:00:40]}  Rb6 {[%clk 0:00:18]} 25. Qxd7 {[%clk 0:00:16]}  Nf6 {[%clk 0:00:18]} 26. Qd2 {[%clk 0:00:08]}  Ng4 {[%clk 0:00:16]} 27. Re1 {[%clk 0:00:08]}  Rxb2 {[%clk 0:00:11]} 28. Qxb2 {[%clk 0:00:05]}  Qxe3+ {[%clk 0:00:11]} 29. Kd1 {[%clk 0:00:05]}  Nf2+ {[%clk 0:00:12]} 30. Kc2 {[%clk 0:00:06]}  Qxe1 {[%clk 0:00:12]} 31. Qb8+ {[%clk 0:00:01]}  Kg7 {[%clk 0:00:12]} 32. Bc4 {[%clk 0:00:01]}  Qd1+ {[%clk 0:00:09]} 33. Kb2 {[%clk 0:00:01]}  Qd2+ {[%clk 0:00:05]} 34. Kb3 {[%clk 0:00:01]}  Qd1+ {[%clk 0:00:05]} 35. Kb2 {[%clk 0:00:02]}  Qd2+ {[%clk 0:00:06]} 36. Kb3 {[%clk 0:00:01]}  Qe1 {[%clk 0:00:03]} 0-1


[Site "https://www.chess.com"]

[Event "Titled Tuesday Blitz January 03 Early 2023"]
[White "Drozdowski, Kacper"]
[Black "Madaminov, Mukhiddin"]
[WhiteFideId "1136720"]
[BlackFideId "14210703"]
[WhiteElo "2448"]
[BlackElo "2422"]
[Result "0-1"]
[Round "05"]
[TimeControl "180+2"]
[Date "2023.01.03"]
[WhiteClock "0:01:33"]
[BlackClock "0:01:49"]

1. e4 {[%clk 0:03:00]}  e5 {[%clk 0:02:59]} 2. Nf3 {[%clk 0:02:59]}  Nc6 {[%clk 0:02:59]} 3. Bc4 {[%clk 0:02:59]}  Nf6 {[%clk 0:02:59]} 4. d3 {[%clk 0:02:59]}  h6 {[%clk 0:02:58]} 5. c3 {[%clk 0:03:00]}  g5 {[%clk 0:02:50]} 6. h3 {[%clk 0:02:58]}  Bg7 {[%clk 0:02:49]} 7. Nbd2 {[%clk 0:02:58]}  O-O {[%clk 0:02:48]} 8. Bb3 {[%clk 0:02:58]}  d5 {[%clk 0:02:44]} 9. Qe2 {[%clk 0:02:57]}  Re8 {[%clk 0:02:42]} 10. Nf1 {[%clk 0:02:57]}  Be6 {[%clk 0:02:21]} 11. Ng3 {[%clk 0:02:57]}  Qd7 {[%clk 0:02:21]} 12. Bc2 {[%clk 0:02:42]}  Rad8 {[%clk 0:02:19]} 13. b4 {[%clk 0:02:32]}  b5 {[%clk 0:02:13]} 14. a4 {[%clk 0:02:26]}  a6 {[%clk 0:02:13]} 15. axb5 {[%clk 0:02:22]}  axb5 {[%clk 0:02:14]} 16. exd5 {[%clk 0:02:16]}  Nxd5 {[%clk 0:02:11]} 17. Ne4 {[%clk 0:02:16]}  Qe7 {[%clk 0:02:04]} 18. Bb2 {[%clk 0:02:04]}  Nf4 {[%clk 0:01:58]} 19. Qf1 {[%clk 0:02:02]}  f5 {[%clk 0:01:58]} 20. Nc5 {[%clk 0:02:01]}  e4 {[%clk 0:01:58]} 21. dxe4 {[%clk 0:01:52]}  Bc4 {[%clk 0:01:57]} 22. Bb3 {[%clk 0:01:37]}  Qxe4+ {[%clk 0:01:52]} 23. Nxe4 {[%clk 0:01:32]}  Rxe4+ {[%clk 0:01:53]} 24. Qe2 {[%clk 0:01:33]}  Rxe2+ {[%clk 0:01:49]} 0-1


[Site "https://www.chess.com"]

[Event "Titled Tuesday Blitz January 03 Early 2023"]
[White "Tan, Zhongyi"]
[Black "Jones, Gawain C B"]
[WhiteFideId "8603642"]
[BlackFideId "409561"]
[WhiteElo "2517"]
[BlackElo "2618"]
[Result "0-1"]
[Round "05"]
[TimeControl "180+2"]
[Date "2023.01.03"]
[WhiteClock "0:00:03"]
[BlackClock "0:00:05"]

1. e4 {[%clk 0:03:00]}  c5 {[%clk 0:02:44]} 2. Nf3 {[%clk 0:02:59]}  Nc6 {[%clk 0:02:44]} 3. Bb5 {[%clk 0:02:59]}  g6 {[%clk 0:02:44]} 4. O-O {[%clk 0:02:58]}  Bg7 {[%clk 0:02:44]} 5. Re1 {[%clk 0:02:59]}  e5 {[%clk 0:02:44]} 6. a3 {[%clk 0:02:45]}  Nge7 {[%clk 0:02:41]} 7. b4 {[%clk 0:02:44]}  cxb4 {[%clk 0:02:41]} 8. axb4 {[%clk 0:02:45]}  Nxb4 {[%clk 0:02:41]} 9. Ba3 {[%clk 0:02:45]}  Nbc6 {[%clk 0:02:40]} 10. c3 {[%clk 0:02:41]}  O-O {[%clk 0:02:06]} 11. d4 {[%clk 0:02:40]}  d6 {[%clk 0:01:35]} 12. d5 {[%clk 0:02:27]}  Nb8 {[%clk 0:01:32]} 13. Nbd2 {[%clk 0:02:27]}  a6 {[%clk 0:01:25]} 14. Bf1 {[%clk 0:02:26]}  Bg4 {[%clk 0:01:18]} 15. h3 {[%clk 0:02:18]}  Bxf3 {[%clk 0:01:18]} 16. Qxf3 {[%clk 0:02:19]}  Qc7 {[%clk 0:01:12]} 17. Nc4 {[%clk 0:02:08]}  Nc8 {[%clk 0:01:12]} 18. Bb4 {[%clk 0:02:01]}  Nd7 {[%clk 0:01:10]} 19. Reb1 {[%clk 0:02:01]}  b6 {[%clk 0:00:59]} 20. Na3 {[%clk 0:01:48]}  Nc5 {[%clk 0:00:54]} 21. c4 {[%clk 0:01:29]}  Ne7 {[%clk 0:00:50]} 22. Nc2 {[%clk 0:01:19]}  f5 {[%clk 0:00:49]} 23. exf5 {[%clk 0:01:18]}  e4 {[%clk 0:00:48]} 24. Qd1 {[%clk 0:01:16]}  Bxa1 {[%clk 0:00:46]} 25. Rxa1 {[%clk 0:01:17]}  Nxf5 {[%clk 0:00:45]} 26. Bc3 {[%clk 0:01:06]}  Rae8 {[%clk 0:00:34]} 27. Nd4 {[%clk 0:00:56]}  e3 {[%clk 0:00:30]} 28. fxe3 {[%clk 0:00:44]}  Rxe3 {[%clk 0:00:28]} 29. Nxf5 {[%clk 0:00:41]}  Rxf5 {[%clk 0:00:28]} 30. Qd4 {[%clk 0:00:37]}  Rfe5 {[%clk 0:00:19]} 31. Rb1 {[%clk 0:00:36]}  Na4 {[%clk 0:00:14]} 32. Ba1 {[%clk 0:00:33]}  Qc5 {[%clk 0:00:14]} 33. Kf2 {[%clk 0:00:16]}  Ra3 {[%clk 0:00:06]} 34. Qxc5 {[%clk 0:00:16]}  Ra2+ {[%clk 0:00:07]} 35. Kg3 {[%clk 0:00:13]}  Nxc5 {[%clk 0:00:05]} 36. Bxe5 {[%clk 0:00:12]}  dxe5 {[%clk 0:00:06]} 37. Rxb6 {[%clk 0:00:12]}  Ne4+ {[%clk 0:00:06]} 38. Kh2 {[%clk 0:00:11]}  Nd2 {[%clk 0:00:06]} 39. Be2 {[%clk 0:00:07]}  e4 {[%clk 0:00:07]} 40. d6 {[%clk 0:00:06]}  Nf3+ {[%clk 0:00:06]} 41. Kg3 {[%clk 0:00:03]}  Ne5 {[%clk 0:00:06]} 42. Rb8+ {[%clk 0:00:03]}  Kf7 {[%clk 0:00:06]} 43. Bg4 {[%clk 0:00:04]}  Rd2 {[%clk 0:00:04]} 44. c5 {[%clk 0:00:03]}  g5 {[%clk 0:00:04]} 45. Rb7+ {[%clk 0:00:02]}  Kf6 {[%clk 0:00:04]} 46. d7 {[%clk 0:00:03]}  h5 {[%clk 0:00:02]} 47. Bxh5 {[%clk 0:00:03]}  Rd3+ {[%clk 0:00:02]} 48. Kh2 {[%clk 0:00:02]}  Rxd7 {[%clk 0:00:03]} 49. c6 {[%clk 0:00:03]}  Rxb7 {[%clk 0:00:03]} 50. cxb7 {[%clk 0:00:04]}  Nc6 {[%clk 0:00:03]} 51. Be2 {[%clk 0:00:04]}  a5 {[%clk 0:00:03]} 52. Bb5 {[%clk 0:00:04]}  Nb8 {[%clk 0:00:03]} 53. Kg3 {[%clk 0:00:05]}  Kf5 {[%clk 0:00:03]} 54. Kf2 {[%clk 0:00:06]}  Kf4 {[%clk 0:00:03]} 55. g3+ {[%clk 0:00:05]}  Ke5 {[%clk 0:00:04]} 56. Ke3 {[%clk 0:00:06]}  Kd5 {[%clk 0:00:04]} 57. h4 {[%clk 0:00:07]}  gxh4 {[%clk 0:00:04]} 58. gxh4 {[%clk 0:00:08]}  Ke5 {[%clk 0:00:03]} 59. h5 {[%clk 0:00:09]}  Kf5 {[%clk 0:00:03]} 60. h6 {[%clk 0:00:09]}  Kg6 {[%clk 0:00:03]} 61. Kxe4 {[%clk 0:00:09]}  Kxh6 {[%clk 0:00:04]} 62. Ke5 {[%clk 0:00:10]}  Kg7 {[%clk 0:00:03]} 63. Kd6 {[%clk 0:00:11]}  a4 {[%clk 0:00:02]} 64. Kc7 {[%clk 0:00:12]}  a3 {[%clk 0:00:02]} 65. Bc4 {[%clk 0:00:12]}  Na6+ {[%clk 0:00:02]} 66. Bxa6 {[%clk 0:00:12]}  a2 {[%clk 0:00:02]} 67. b8=Q {[%clk 0:00:11]}  a1=Q {[%clk 0:00:03]} 68. Qb7 {[%clk 0:00:11]}  Qf6 {[%clk 0:00:03]} 69. Kb8+ {[%clk 0:00:12]}  Qf7 {[%clk 0:00:03]} 70. Qg2+ {[%clk 0:00:12]}  Qg6 {[%clk 0:00:03]} 71. Qb2+ {[%clk 0:00:12]}  Qf6 {[%clk 0:00:04]} 72. Qb5 {[%clk 0:00:12]}  Qf8+ {[%clk 0:00:04]} 73. Bc8 {[%clk 0:00:12]}  Qd6+ {[%clk 0:00:04]} 74. Ka8 {[%clk 0:00:13]}  Qa3+ {[%clk 0:00:04]} 75. Kb7 {[%clk 0:00:11]}  Qf3+ {[%clk 0:00:04]} 76. Kb8 {[%clk 0:00:11]}  Qg3+ {[%clk 0:00:03]} 77. Ka7 {[%clk 0:00:09]}  Qc7+ {[%clk 0:00:03]} 78. Bb7 {[%clk 0:00:08]}  Kf6 {[%clk 0:00:03]} 79. Qb2+ {[%clk 0:00:06]}  Qe5 {[%clk 0:00:02]} 80. Qf2+ {[%clk 0:00:05]}  Ke7 {[%clk 0:00:03]} 81. Kb6 {[%clk 0:00:04]}  Qd6+ {[%clk 0:00:03]} 82. Bc6 {[%clk 0:00:04]}  Qb8+ {[%clk 0:00:03]} 83. Ka6 {[%clk 0:00:03]}  Qc8+ {[%clk 0:00:03]} 84. Bb7 {[%clk 0:00:03]}  Qc4+ {[%clk 0:00:03]} 85. Ka7 {[%clk 0:00:03]}  Qa4+ {[%clk 0:00:03]} 86. Kb8 {[%clk 0:00:03]}  Qe8+ {[%clk 0:00:04]} 87. Ka7 {[%clk 0:00:04]}  Qa4+ {[%clk 0:00:04]} 88. Kb6 {[%clk 0:00:04]}  Qb4+ {[%clk 0:00:04]} 89. Kc7 {[%clk 0:00:03]}  Qd6+ {[%clk 0:00:04]} 90. Kc8 {[%clk 0:00:03]}  Qd8# {[%clk 0:00:05]} 0-1


[Site "https://www.chess.com"]

[Event "Titled Tuesday Blitz January 03 Early 2023"]
[White "Dourerassou, Jonathan"]
[Black "Yeletsky, Ivan"]
[WhiteFideId "628050"]
[BlackFideId "24180327"]
[WhiteElo "2414"]
[BlackElo "2494"]
[Result "0-1"]
[Round "05"]
[TimeControl "180+2"]
[Date "2023.01.03"]
[WhiteClock "0:00:16"]
[BlackClock "0:00:35"]

1. d4 {[%clk 0:02:56]}  Nf6 {[%clk 0:02:59]} 2. Bg5 {[%clk 0:02:53]}  Nc6 {[%clk 0:02:59]} 3. Bxf6 {[%clk 0:02:51]}  gxf6 {[%clk 0:02:58]} 4. d5 {[%clk 0:02:51]}  Ne5 {[%clk 0:02:58]} 5. e4 {[%clk 0:02:50]}  e6 {[%clk 0:02:58]} 6. Nf3 {[%clk 0:02:50]}  Bc5 {[%clk 0:02:57]} 7. Nc3 {[%clk 0:02:48]}  Ng4 {[%clk 0:02:54]} 8. Nd4 {[%clk 0:02:48]}  f5 {[%clk 0:02:46]} 9. Qd2 {[%clk 0:02:34]}  Qf6 {[%clk 0:02:21]} 10. Ncb5 {[%clk 0:02:34]}  c6 {[%clk 0:02:17]} 11. dxc6 {[%clk 0:02:28]}  bxc6 {[%clk 0:02:08]} 12. Nc7+ {[%clk 0:02:25]}  Kd8 {[%clk 0:01:56]} 13. Nxa8 {[%clk 0:01:49]}  Qxd4 {[%clk 0:01:42]} 14. Qxd4 {[%clk 0:01:25]}  Bxd4 {[%clk 0:01:43]} 15. O-O-O {[%clk 0:01:24]}  Bxf2 {[%clk 0:01:41]} 16. exf5 {[%clk 0:01:18]}  Be3+ {[%clk 0:01:41]} 17. Kb1 {[%clk 0:01:17]}  Nf2 {[%clk 0:01:42]} 18. Be2 {[%clk 0:01:11]}  Nxh1 {[%clk 0:01:41]} 19. Rxh1 {[%clk 0:01:07]}  Bb7 {[%clk 0:01:41]} 20. fxe6 {[%clk 0:01:07]}  fxe6 {[%clk 0:01:41]} 21. Rf1 {[%clk 0:01:07]}  Bxa8 {[%clk 0:01:41]} 22. c3 {[%clk 0:01:06]}  Ke7 {[%clk 0:01:41]} 23. Bf3 {[%clk 0:01:05]}  c5 {[%clk 0:01:39]} 24. Bxa8 {[%clk 0:01:04]}  Rxa8 {[%clk 0:01:40]} 25. Rf3 {[%clk 0:01:05]}  Bg5 {[%clk 0:01:40]} 26. Kc2 {[%clk 0:01:01]}  Rf8 {[%clk 0:01:39]} 27. Rg3 {[%clk 0:01:01]}  Rf2+ {[%clk 0:01:39]} 28. Kb3 {[%clk 0:01:01]}  Bf6 {[%clk 0:01:40]} 29. Rh3 {[%clk 0:01:00]}  Rxg2 {[%clk 0:01:37]} 30. Rxh7+ {[%clk 0:01:01]}  Kd6 {[%clk 0:01:38]} 31. h4 {[%clk 0:01:01]}  Rh2 {[%clk 0:01:37]} 32. h5 {[%clk 0:01:01]}  Kc6 {[%clk 0:01:38]} 33. a4 {[%clk 0:01:01]}  Bg5 {[%clk 0:01:36]} 34. Rh8 {[%clk 0:00:59]}  Bc1 {[%clk 0:01:37]} 35. a5 {[%clk 0:00:53]}  Rxb2+ {[%clk 0:01:34]} 36. Ka4 {[%clk 0:00:53]}  c4 {[%clk 0:01:26]} 37. h6 {[%clk 0:00:47]}  Rh2 {[%clk 0:01:26]} 38. h7 {[%clk 0:00:45]}  Kc7 {[%clk 0:01:19]} 39. Kb5 {[%clk 0:00:45]}  Bd2 {[%clk 0:01:06]} 40. Kxc4 {[%clk 0:00:44]}  Rh3 {[%clk 0:01:07]} 41. Kb5 {[%clk 0:00:44]}  Bxc3 {[%clk 0:01:06]} 42. Ra8 {[%clk 0:00:43]}  Rxh7 {[%clk 0:01:06]} 43. Rxa7+ {[%clk 0:00:44]}  Kb8 {[%clk 0:01:05]} 44. Ka6 {[%clk 0:00:42]}  Bd4 {[%clk 0:01:01]} 45. Rb7+ {[%clk 0:00:42]}  Kc8 {[%clk 0:01:02]} 46. Rb4 {[%clk 0:00:41]}  Bc5 {[%clk 0:01:02]} 47. Rb1 {[%clk 0:00:38]}  d6 {[%clk 0:01:02]} 48. Rf1 {[%clk 0:00:37]}  Ra7+ {[%clk 0:01:01]} 49. Kb5 {[%clk 0:00:38]}  Rh7 {[%clk 0:00:52]} 50. a6 {[%clk 0:00:37]}  Rh2 {[%clk 0:00:51]} 51. Kc6 {[%clk 0:00:36]}  Kb8 {[%clk 0:00:48]} 52. Rf7 {[%clk 0:00:35]}  Rb2 {[%clk 0:00:46]} 53. Kd7 {[%clk 0:00:22]}  Rb6 {[%clk 0:00:46]} 54. Kxe6 {[%clk 0:00:22]}  Rxa6 {[%clk 0:00:46]} 55. Kd5 {[%clk 0:00:22]}  Rb6 {[%clk 0:00:46]} 56. Rh7 {[%clk 0:00:22]}  Rb7 {[%clk 0:00:47]} 57. Rh8+ {[%clk 0:00:21]}  Ka7 {[%clk 0:00:47]} 58. Kc6 {[%clk 0:00:20]}  Rb6+ {[%clk 0:00:44]} 59. Kc7 {[%clk 0:00:20]}  Ka6 {[%clk 0:00:45]} 60. Rh1 {[%clk 0:00:19]}  Rb4 {[%clk 0:00:44]} 61. Kc6 {[%clk 0:00:19]}  Ka5 {[%clk 0:00:39]} 62. Rh8 {[%clk 0:00:17]}  Ka4 {[%clk 0:00:39]} 63. Kd5 {[%clk 0:00:17]}  Kb3 {[%clk 0:00:40]} 64. Rh3+ {[%clk 0:00:16]}  Kc2 {[%clk 0:00:39]} 65. Rh2+ {[%clk 0:00:17]}  Kd1 {[%clk 0:00:40]} 66. Rh1+ {[%clk 0:00:17]}  Ke2 {[%clk 0:00:41]} 67. Rh2+ {[%clk 0:00:18]}  Kf3 {[%clk 0:00:41]} 68. Rh3+ {[%clk 0:00:18]}  Kg4 {[%clk 0:00:42]} 69. Rh1 {[%clk 0:00:18]}  Rd4+ {[%clk 0:00:41]} 70. Ke6 {[%clk 0:00:19]}  Re4+ {[%clk 0:00:41]} 71. Kd5 {[%clk 0:00:19]}  Re5+ {[%clk 0:00:40]} 72. Kc4 {[%clk 0:00:19]}  Kf5 {[%clk 0:00:38]} 73. Rh8 {[%clk 0:00:19]}  Be3 {[%clk 0:00:35]} 74. Rh5+ {[%clk 0:00:18]}  Ke4 {[%clk 0:00:34]} 75. Rh4+ {[%clk 0:00:18]}  Bf4 {[%clk 0:00:35]} 76. Kc3 {[%clk 0:00:18]}  d5 {[%clk 0:00:35]} 77. Rh1 {[%clk 0:00:18]}  d4+ {[%clk 0:00:34]} 78. Kc4 {[%clk 0:00:19]}  d3 {[%clk 0:00:34]} 79. Re1+ {[%clk 0:00:15]}  Be3 {[%clk 0:00:35]} 80. Rh1 {[%clk 0:00:16]}  d2 {[%clk 0:00:35]} 81. Kc3 {[%clk 0:00:16]}  Rc5+ {[%clk 0:00:35]} 0-1


[Site "https://www.chess.com"]